[Event "ETCC Open 2023"]
[Site "Budva"]
[Date "2023.11.13"]
[Round "3.9"]
[White "Carlsen, Magnus"]
[Black "Gretarsson, Hjorvar Steinn"]
[Result "1-0"]
[ECO "C77"]
[WhiteElo "2829"]
[BlackElo "2518"]
[Annotator "TA"]
[PlyCount "93"]
[EventDate "2023.11.10"]
[EventType "team-tourn"]
[EventCountry "MNE"]
[SourceTitle "playchess.com"]
[Source "ChessBase"]
[SourceQuality "1"]
[WhiteTeam "Norway"]
[BlackTeam "Iceland"]
[WhiteTeamCountry "NOR"]
[BlackTeamCountry "ISL"]
[TimeControl "40/5400+30:1800+30"]

{[%evp 13,93,12,18,14,18,21,28,3,25,29,24,4,31,37,60,63,74,68,70,50,55,44,50,59,113,103,110,109,104,105,129,125,143,122,137,132,127,120,134,123,129,126,124,117,122,124,157,139,206,194,201,188,238,204,224,227,232,216,240,230,248,206,235,189,343,323,352,364,362,372,546,474,668,643,1014,976,1722,1685,1929,1659,1839,1766]} 1. e4 {[%emt 0:04:12]} e5 {[%emt 0:00:07]} 2. Nf3 {[%emt 0:00:07]} Nc6 {[%emt 0:00:06]} 3. Bb5 {[%emt 0:00:49][%cal Bf1b5,Bb5a4,Ba4b3][%mdl 32]} a6 {[%emt 0:00:39]} 4. Ba4 {[%emt 0:00:02]} Nf6 {[%emt 0:00:06]} 5. d3 {[%emt 0:00:37]} Bc5 {[%emt 0:01:30]} 6. c3 {[%emt 0:01:09]} b5 {[%emt 0:02:36]} 7. Bb3 {[%emt 0:00:43]} d6 {[%emt 0:01:08]} 8. Bg5 $1 {[%emt 0:00:37][%cal Bc1g5,Bg5h4,Bh4g3][%mdl 4] outshines the older 8.0-0. C77: Ruy Lopez: 3...a6 4 Ba4 Nf6, unusual lines.} h6 {[%emt 0:02:11]} 9. Bh4 {[%emt 0:01:34]} Ba7 {[%emt 0:12:36]} 10. Nbd2 {[%emt 0:01:22] White has an edge.} g5 {[%emt 0:10:57]} 11. Bg3 {[%emt 0:00:04]} Qe7 {[%emt 0:07:09]} 12. Nf1 {[%emt 0:04:34]} Be6 {[%emt 0:08:43]} 13. Ne3 {[%emt 0:01:25] [#]} Rb8 $146 {[%emt 0:16:46]} ({Predecessor:} 13... Qd7 14. Bc2 Ng4 15. d4 Nxe3 16. fxe3 Bg4 17. Qd3 f6 18. a4 h5 19. axb5 axb5 {1-0 Ocampo Betancur,C (1998)-Moscoso Sanchez,F (2138) Manizales Las Americas op-A 2021 (9)}) 14. O-O {[%emt 0:05:25]} Bxe3 {[%emt 0:03:54]} 15. fxe3 {[%emt 0:00:03][%cal Of3h4]} O-O {[%emt 0:01:56]} 16. Nd2 {[%emt 0:02:25]} Bg4 {[%emt 0:02:45]} 17. Qe1 {[%emt 0:01:02]} Bh5 {[%emt 0:00:31]} 18. Nf3 {[%emt 0:03:15][%cal Bd2f3,Bf3h4,Bh4f5][%mdl 32]} Kg7 {[%emt 0:02:28] [#] Black is now going downhill.} ({Black should play} 18... Nd7 $14) 19. Nh4 $1 $16 {[%emt 0:01:02][%mdl 512]} Bg6 {[%emt 0:00:29]} (19... gxh4 $2 20. Bxh4 Kh7 21. Rxf6 $18) 20. Nf5+ {[%emt 0:00:38]} Bxf5 {[%emt 0:00:05]} 21. Rxf5 {[%emt 0:00:16]} Nd7 {[%emt 0:04:48]} 22. Qe2 {[%emt 0:01:01]} Qe8 {[%emt 0:02:52]} 23. Raf1 {[%emt 0:05:06] White has more active pieces.} f6 {[%emt 0:00:26]} 24. h4 {[%emt 0:00:32][%cal Bh2h4,Bh4h5][%mdl 32]} Ne7 {[%emt 0:01:05]} 25. R5f2 {[%emt 0:00:12]} Nc5 {[%emt 0:05:20]} 26. Bc2 {[%emt 0:02:47]} Ng6 {[%emt 0:01:15]} 27. h5 {[%emt 0:01:20] d4 is the strong threat.} Ne7 {[%emt 0:00:41]} 28. d4 {[%emt 0:00:27]} Nd7 {[%emt 0:00:25]} 29. Bb3 {[%emt 0:00:55]} Rd8 {[%emt 0:04:00]} 30. a4 {[%emt 0:02:03]} f5 {[%emt 0:03:17]} (30... Rb8 $16 31. axb5 axb5) 31. dxe5 {[%emt 0:04:20]} (31. exf5 e4 32. axb5 axb5 33. Qxb5 Nf6) 31... Nxe5 {[%emt 0:00:32]} 32. exf5 {[%emt 0:00:10]} Kf6 {[%emt 0:00:57]} (32... Ng8 {was worth a try.} 33. Bxe5+ dxe5 34. Bxg8 Kxg8) 33. Be6 {[%emt 0:02:09]} Qc6 {[%emt 0:01:44]} 34. axb5 {[%emt 0:01:53]} Qxb5 {[%emt 0:01:10]} 35. Qd1 {[%emt 0:04:01]} a5 {[%emt 0:00:27]} 36. b3 {[%emt 0:00:33]} ({Don't take} 36. Qd4 $6 N7c6 37. Bxe5+ Qxe5) 36... Rb8 {[%emt 0:01:09]} 37. Ra2 {[%emt 0:00:40]} ({But not} 37. Qd4 $6 N7c6 38. Qe4 (38. Bxe5+ Qxe5 39. Qc4 Qb5 $16) 38... Qd3 39. Bxe5+ Nxe5) 37... N7c6 {[%emt 0:00:26]} 38. e4 {[%emt 0:02:22]} Qc5+ $2 {[%emt 0:00:57]} (38... Qd3 {might work better.} 39. Qxd3 Nxd3) 39. Bf2 $18 {[%emt 0:02:04]} Qxc3 {[%emt 0:00:08]} 40. Rc2 {[%emt 0:02:47][%cal Ba2c2,Bc2c7,Bc7a7,Ba7h7][%mdl 32]} Qb4 {[%emt 0:00:17]} 41. Bd5 {[%emt 0:36:05]} Ne7 {[%emt 0:13:22]} (41... Rb6 $142 42. Kh1 Re8 43. Bxb6 Qxb6 44. Bxc6 Nxc6) 42. Rxc7 {[%emt 0:00:00] White is clearly winning.} Rfc8 {[%emt 0:00:39]} (42... a4 $142 43. bxa4 Rfc8) 43. Ra7 {[%emt 0:00:00]} Rc3 {[%emt 0:08:09] [#]} 44. Bc4 {[%emt 0:00:00][%mdl 512] Dodges Rd3. This pair of bishops is nice.} Rb6 {[%emt 0:06:25]} (44... Nxc4 45. Bd4+) 45. Bd4 {[%emt 0:00:00]} Rxc4 {[%emt 0:04:19]} 46. bxc4 {[%emt 0:00:00] Hoping for Bxe5+.} N7c6 {[%emt 0:00:42]} 47. Rh7 {[%emt 0:00:00] Artfully played by Carlsen.   Weighted Error Value: White=0.10 (very precise) /Black=0.39} 1-0

[Event "ETCC Open 2023"]
[Site "Budva"]
[Date "2023.11.13"]
[Round "3.10"]
[White "Stefansson, Hannes"]
[Black "Amar, Elham"]
[Result "1-0"]
[ECO "D24"]
[WhiteElo "2518"]
[BlackElo "2584"]
[Annotator "TA"]
[PlyCount "131"]
[EventDate "2023.11.10"]
[EventType "team-tourn"]
[EventCountry "MNE"]
[SourceTitle "playchess.com"]
[Source "ChessBase"]
[SourceQuality "1"]
[WhiteTeam "Iceland"]
[BlackTeam "Norway"]
[WhiteTeamCountry "ISL"]
[BlackTeamCountry "NOR"]
[TimeControl "40/5400+30:1800+30"]

{[%evp 9,131,25,58,47,42,49,52,43,37,31,56,17,15,12,23,-8,0,-38,-32,-56,0,0,0,0,0,0,0,0,36,0,41,0,0,8,5,9,31,31,38,0,38,0,0,0,8,23,50,14,29,37,24,38,33,23,21,21,48,0,0,0,0,0,0,0,0,0,0,0,0,0,0,-33,14,14,81,19,246,246,245,179,232,232,233,205,201,123,137,153,237,150,147,147,141,0,134,134,649,299,553,563,576,556,571,560,545,522,763,700,641,623,732,701,2045,1923,1777,1525,1395,875,2852,2629,2103,1085,12845,12845]} 1. d4 {[%emt 0:00:18]} Nf6 {[%emt 0:00:04]} 2. c4 {[%emt 0:00:37]} e6 {[%emt 0:00:09]} 3. Nf3 {[%emt 0:00:31]} d5 {[%emt 0:00:10]} 4. Nc3 {[%emt 0:01:07]} dxc4 {[%emt 0:00:11]} 5. e4 {[%emt 0:02:06][%cal Be2e4,Be4e5][%mdl 32]} b5 {[%emt 0:00:04]} 6. e5 {[%emt 0:00:50] D24: Queen's Gambit Accepted: 3 Nf3 Nf6 4 Nc3.} Nd5 {[%emt 0:00:06]} 7. Nxb5 {[%emt 0:00:21]} Nb6 {[%emt 0:00:03]} 8. Be3 {[%emt 0:01:15] White is slightly better.} Nc6 {[%emt 0:00:53]} 9. Nc3 {[%emt 0:01:29][%cal Bb5c3,Bc3e4,Be4g5][%mdl 32]} Be7 {[%emt 0:03:22]} 10. a3 {[%emt 0:02:24] [#]} O-O $146 {[%emt 0:03:40]} ({Predecessor:} 10... Bb7 11. Qc2 Qd7 12. Be2 Na5 13. Rd1 f5 14. h4 O-O 15. Rg1 Rad8 16. Ng5 Bxg5 17. Bxg5 {1-0 Gajewski,G (2608)-Kollars,D (2621) POL-chT Ekstraliga 2021 (8.2)}) 11. Qc2 {[%emt 0:03:29]} Bb7 {[%emt 0:29:27]} 12. Ne4 {[%emt 0:07:38]} Na5 {[%emt 0:05:53]} 13. Neg5 {[%emt 0:04:20][%csl Gg5][%cal Rc2h7]} g6 {[%emt 0:00:12]} 14. Ne4 {[%emt 0:01:35]} Qd5 {[%emt 0:14:19]} (14... Bxe4 $15 15. Qxe4 Qd5) 15. Nc3 $11 {[%emt 0:01:33]} Qd7 {[%emt 0:00:12]} 16. Be2 {[%emt 0:02:44]} Nd5 {[%emt 0:01:44]} 17. Bh6 {[%emt 0:02:16]} Rfd8 {[%emt 0:03:16]} 18. O-O {[%emt 0:03:35]} Bc6 {[%emt 0:04:19]} 19. Nd2 {[%emt 0:03:35][%cal Bf3d2,Bd2e4,Be4c3,Bc3e2][%mdl 32]} Nb6 {[%emt 0:05:57]} 20. Rad1 {[%emt 0:01:10]} Rab8 {[%emt 0:04:25]} 21. Be3 {[%emt 0:07:08]} Na4 {[%emt 0:02:38]} 22. Rb1 {[%emt 0:01:52]} Nb6 {[%emt 0:03:03]} 23. Rfd1 {[%emt 0:08:36]} Qe8 {[%emt 0:04:58]} 24. Nde4 {[%emt 0:03:29]} Nd5 {[%emt 0:01:43]} 25. Bh6 {[%emt 0:04:47]} Nxc3 {[%emt 0:01:49]} 26. Nxc3 {[%emt 0:03:03]} Rd7 {[%emt 0:02:27]} 27. Be3 {[%emt 0:11:55]} Rbd8 {[%emt 0:01:57]} 28. Bf3 {[%emt 0:03:29]} (28. Na2 $5 {[%cal Rc2c3]}) 28... Bxf3 {[%emt 0:00:48]} 29. gxf3 {[%emt 0:00:07]} Nb3 {[%emt 0:01:13][%cal Rb3d4]} 30. Ne2 {[%emt 0:04:53]} c5 {[%emt 0:00:10][%cal Rc5d4]} 31. Qxc4 {[%emt 0:01:13]} Nxd4 {[%emt 0:00:03]} 32. Nxd4 {[%emt 0:01:22]} Rd5 {[%emt 0:00:19][%mdl 64] [#] Pin} (32... cxd4 {simplifies} 33. Rxd4 Rxd4 34. Bxd4 a5) 33. Kg2 $1 {[%emt 0:06:39]} cxd4 {[%emt 0:01:41]} 34. Rxd4 {[%emt 0:00:08]} Rxe5 {[%emt 0:03:34]} 35. Rxd8 {[%emt 0:01:06]} Qxd8 {[%emt 0:00:02]} 36. Qd4 {[%emt 0:04:39]} Rg5+ {[%emt 0:01:36][%mdl 64] Deflection} 37. Kf1 {[%emt 0:00:18]} Rd5 {[%emt 0:00:34]} 38. Qxa7 {[%emt 0:00:18]} Bd6 {[%emt 0:00:57]} 39. Rc1 {[%emt 0:00:53]} Kg7 {[%emt 0:01:27][%cal Od8f6]} 40. Bd4+ {[%emt 0:00:40]} e5 {[%emt 0:00:18]} (40... Be5 $1 $15 41. Bxe5+ Rxe5) 41. Be3 {[%emt 0:30:18]} Qf6 {[%emt 0:03:31]} ({Don't play} 41... Qh4 42. Qa8 Qh3+ 43. Ke2 $16) (41... e4 $1 $11 {keeps the balance.} 42. Bd4+ (42. fxe4 Bc5 $11) 42... Be5 43. Bxe5+ Rxe5) 42. Kg2 {[%emt 0:00:00]} (42. Rc3 $1 $16) 42... Qf5 $2 {[%emt 0:05:09]} (42... e4 $1 $11 {and Black is okay.} 43. fxe4 Rh5) 43. Qa4 $18 {[%emt 0:00:00]} Rd4 {[%emt 0:01:38]} 44. Qc2 {[%emt 0:00:00]} (44. Bxd4 Qg5+ 45. Kh3 Qxc1 $11) 44... Rd3 {[%emt 0:00:30]} (44... Qxc2 {was worth a try.} 45. Rxc2 Rd1) 45. Qc4 {[%emt 0:00:00]} Be7 {[%emt 0:00:49]} 46. Qe4 {[%emt 0:00:00]} Rb3 {[%emt 0:00:52]} 47. Qxf5 {[%emt 0:00:00]} gxf5 {[%emt 0:00:02][%mdl 4096] Endgame KRB-KRB} 48. Rc2 {[%emt 0:00:00]} Bd8 {[%emt 0:08:21]} (48... f4 $16 {was called for.}) 49. a4 {[%emt 0:00:00]} f4 {[%emt 0:00:37]} 50. Bd2 {[%emt 0:00:00] Threatens to win with a5.} Bb6 {[%emt 0:00:16]} 51. a5 {[%emt 0:00:00]} Bd4 {[%emt 0:00:27] [#]} 52. Bc3 $1 {[%emt 0:00:00]} Kf6 $2 {[%emt 0:12:25][%mdl 8192]} (52... Bxc3 $16 53. Rxc3 Rxb2) 53. a6 {[%emt 0:00:25]} (53. Bxd4 $142 {aiming for Rc6+.} exd4 54. a6) 53... Ba7 $2 {[%emt 0:00:02] [#]} (53... Rb5 54. Bxd4 exd4) 54. Ba5 $1 {[%emt 0:02:40] Rc7 is the strong threat. White is clearly winning.} Bd4 {[%emt 0:00:52]} 55. Rc4 {[%emt 0:00:45][%cal Oc4d4]} Rb8 {[%emt 0:01:05]} 56. b4 {[%emt 0:00:31][%cal Bb2b4,Bb4b5][%mdl 32]} Ke6 {[%emt 0:00:07]} 57. Rc7 {[%emt 0:00:47]} f5 {[%emt 0:00:49]} 58. Rb7 {[%emt 0:00:37]} Ra8 {[%emt 0:01:19]} 59. b5 {[%emt 0:00:29]} e4 {[%emt 0:00:24]} 60. Bb6 {[%emt 0:00:21]} Rg8+ {[%emt 0:01:00]} 61. Kf1 {[%emt 0:00:14]} Be5 {[%emt 0:00:04]} 62. Bc7 {[%emt 0:00:52]} Bd4 {[%emt 0:00:16]} 63. fxe4 {[%emt 0:00:59]} f3 {[%emt 0:00:17]} 64. exf5+ {[%emt 0:00:52]} Kxf5 {[%emt 0:00:02]} 65. a7 {[%emt 0:00:36] Hoping for Rb8.} Re8 {[%emt 0:00:19]} 66. Rb8 {[%emt 0:02:03] Weighted Error Value: White=0.23 (precise) /Black=0.31} 1-0

[Event "ETCC Open 2023"]
[Site "Budva"]
[Date "2023.11.13"]
[Round "3.11"]
[White "Hauge, Lars Oskar"]
[Black "Stefansson, Vignir Vatnar"]
[Result "1/2-1/2"]
[ECO "C48"]
[WhiteElo "2498"]
[BlackElo "2483"]
[Annotator "RC"]
[PlyCount "88"]
[EventDate "2023.11.10"]
[EventType "team-tourn"]
[EventCountry "MNE"]
[SourceTitle "playchess.com"]
[Source "ChessBase"]
[SourceQuality "1"]
[WhiteTeam "Norway"]
[BlackTeam "Iceland"]
[WhiteTeamCountry "NOR"]
[BlackTeamCountry "ISL"]
[TimeControl "40/5400+30:1800+30"]

1. e4 {[%emt 0:00:02]} e5 {[%emt 0:00:37]} 2. Nf3 {[%emt 0:00:06]} Nc6 {[%emt 0:00:15]} 3. Bb5 {[%emt 0:01:29]} Nf6 {[%emt 0:00:09]} 4. Bxc6 {[%emt 0:00:10]} dxc6 {[%emt 0:00:14]} 5. Nc3 {[%emt 0:00:12]} Bc5 {[%emt 0:12:10]} 6. d3 {[%emt 0:01:19]} Qe7 {[%emt 0:04:03]} 7. Qe2 {[%emt 0:05:40]} Bd6 {[%emt 0:12:33]} 8. h3 {[%emt 0:04:20]} Be6 {[%emt 0:00:42]} 9. Be3 {[%emt 0:01:53]} Nd7 {[%emt 0:00:44]} 10. a3 {[%emt 0:08:04]} c5 {[%emt 0:05:59]} 11. Nb5 {[%emt 0:04:16]} a6 {[%emt 0:02:15]} 12. Nxd6+ {[%emt 0:00:14]} cxd6 {[%emt 0:00:30]} 13. Ng5 {[%emt 0:04:10]} d5 {[%emt 0:02:51]} 14. Nxe6 {[%emt 0:05:47]} Qxe6 {[%emt 0:00:17]} 15. Qg4 {[%emt 0:00:14]} Qxg4 {[%emt 0:03:44]} 16. hxg4 {[%emt 0:00:54]} d4 {[%emt 0:00:03]} 17. Bd2 {[%emt 0:00:10]} O-O {[%emt 0:00:08]} 18. Ke2 {[%emt 0:04:31]} f6 {[%emt 0:01:09]} 19. a4 {[%emt 0:12:53]} b6 {[%emt 0:02:36]} 20. b3 {[%emt 0:08:51]} Rfc8 {[%emt 0:00:47]} 21. g5 {[%emt 0:03:56]} fxg5 {[%emt 0:03:01]} 22. Bxg5 {[%emt 0:00:32]} b5 {[%emt 0:04:01]} 23. Ra2 {[%emt 0:00:33]} c4 {[%emt 0:02:46]} 24. axb5 {[%emt 0:03:47]} axb5 {[%emt 0:02:24]} 25. Rha1 {[%emt 0:00:21]} Rxa2 {[%emt 0:07:32]} 26. Rxa2 {[%emt 0:00:17]} Nc5 {[%emt 0:00:08]} 27. bxc4 {[%emt 0:10:44]} bxc4 {[%emt 0:00:03]} 28. g3 {[%emt 0:04:02]} Rc7 {[%emt 0:13:35]} 29. Bd2 {[%emt 0:00:55]} Kf7 {[%emt 0:00:15]} 30. f4 {[%emt 0:03:02]} exf4 {[%emt 0:00:06]} 31. gxf4 {[%emt 0:00:08]} g6 {[%emt 0:00:16]} 32. Ra8 {[%emt 0:03:55]} h5 {[%emt 0:02:05]} 33. Bb4 {[%emt 0:02:07]} Ne6 {[%emt 0:02:40]} 34. Bd6 {[%emt 0:00:22]} cxd3+ {[%emt 0:02:38]} 35. cxd3 {[%emt 0:00:05]} Rd7 {[%emt 0:00:11]} 36. Be5 {[%emt 0:00:13]} Rb7 {[%emt 0:00:06]} 37. f5 {[%emt 0:02:37]} gxf5 {[%emt 0:00:56]} 38. exf5 {[%emt 0:00:02]} Ng7 {[%emt 0:00:28]} 39. Bxg7 {[%emt 0:04:22]} Kxg7 {[%emt 0:00:04]} 40. Kf3 {[%emt 0:00:24]} Re7 {[%emt 0:01:32]} 41. Kf4 {[%emt 0:30:20]} Re3 {[%emt 0:30:11]} 42. Ra7+ {[%emt 0:00:26]} Kf6 {[%emt 0:00:08]} 43. Ra6+ {[%emt 0:00:27]} Kf7 {[%emt 0:00:09]} 44. Ra7+ {[%emt 0:00:17]} Kf6 {[%emt 0:00:04]} 1/2-1/2

[Event "ETCC Open 2023"]
[Site "Budva"]
[Date "2023.11.13"]
[Round "3.12"]
[White "Heimisson, Hilmir Freyr"]
[Black "Kaasen, Tor Fredrik"]
[Result "1-0"]
[ECO "B90"]
[WhiteElo "2377"]
[BlackElo "2471"]
[Annotator "RC"]
[PlyCount "129"]
[EventDate "2023.11.10"]
[EventType "team-tourn"]
[EventCountry "MNE"]
[SourceTitle "playchess.com"]
[Source "ChessBase"]
[SourceQuality "1"]
[WhiteTeam "Iceland"]
[BlackTeam "Norway"]
[WhiteTeamCountry "ISL"]
[BlackTeamCountry "NOR"]
[TimeControl "40/5400+30:1800+30"]

1. e4 {[%emt 0:00:56]} c5 {[%emt 0:01:01]} 2. Nf3 {[%emt 0:00:45]} d6 {[%emt 0:00:57]} 3. d4 {[%emt 0:00:18]} cxd4 {[%emt 0:00:10]} 4. Nxd4 {[%emt 0:00:11]} Nf6 {[%emt 0:00:28]} 5. Nc3 {[%emt 0:00:31]} a6 {[%emt 0:00:33]} 6. Rg1 {[%emt 0:00:55]} e5 {[%emt 0:04:09]} 7. Nb3 {[%emt 0:00:12]} Be6 {[%emt 0:02:04]} 8. g4 {[%emt 0:00:24]} d5 {[%emt 0:01:04]} 9. exd5 {[%emt 0:00:39]} Nxd5 {[%emt 0:00:08]} 10. Nxd5 {[%emt 0:00:11]} Qxd5 {[%emt 0:00:09]} 11. Qxd5 {[%emt 0:00:13]} Bxd5 {[%emt 0:00:08]} 12. Be3 {[%emt 0:00:37]} Nc6 {[%emt 0:00:43]} 13. c3 {[%emt 0:01:41]} O-O-O {[%emt 0:03:10]} 14. Nd2 {[%emt 0:00:58]} h6 {[%emt 0:13:57]} 15. a4 {[%emt 0:10:36]} Be7 {[%emt 0:06:20]} 16. Bc4 {[%emt 0:13:18]} Bg5 {[%emt 0:05:05]} 17. Ke2 {[%emt 0:15:05]} Bxe3 {[%emt 0:13:51]} 18. fxe3 {[%emt 0:01:03]} Na5 {[%emt 0:02:59]} 19. Bxd5 {[%emt 0:08:07]} Rxd5 {[%emt 0:00:10]} 20. Ra2 {[%emt 0:00:02]} Kc7 {[%emt 0:09:29]} 21. b4 {[%emt 0:01:50]} Nc6 {[%emt 0:00:10]} 22. Ne4 {[%emt 0:00:38]} Rdd8 {[%emt 0:06:20]} 23. h4 {[%emt 0:03:52]} f6 {[%emt 0:01:30]} 24. h5 {[%emt 0:02:03]} b6 {[%emt 0:11:32]} 25. Rd1 {[%emt 0:05:55]} Rxd1 {[%emt 0:06:22]} 26. Kxd1 {[%emt 0:00:07]} Ne7 {[%emt 0:00:48]} 27. a5 {[%emt 0:05:21]} Rd8+ {[%emt 0:03:06]} 28. Ke2 {[%emt 0:02:01]} Nc6 {[%emt 0:00:57]} 29. axb6+ {[%emt 0:04:13]} Kxb6 {[%emt 0:00:05]} 30. Rd2 {[%emt 0:01:40]} Rxd2+ {[%emt 0:01:48]} 31. Kxd2 {[%emt 0:00:06]} Ne7 {[%emt 0:02:32]} 32. Ng3 {[%emt 0:04:54]} e4 {[%emt 0:03:54]} 33. Nxe4 {[%emt 0:08:17]} f5 {[%emt 0:00:01]} 34. gxf5 {[%emt 0:00:08]} Nxf5 {[%emt 0:00:01]} 35. c4 {[%emt 0:03:46]} Ne7 {[%emt 0:01:36]} 36. Kc3 {[%emt 0:00:41]} Kc6 {[%emt 0:00:23]} 37. Kd4 {[%emt 0:01:26]} Nf5+ {[%emt 0:00:39]} 38. Kd3 {[%emt 0:00:02]} Ne7 {[%emt 0:00:22]} 39. Ng3 {[%emt 0:01:24]} g6 {[%emt 0:00:22]} 40. hxg6 {[%emt 0:01:48]} Nxg6 {[%emt 0:00:07]} 41. Kd4 {[%emt 0:32:32]} Ne7 {[%emt 0:09:13]} 42. e4 {[%emt 0:00:00]} Kb6 {[%emt 0:00:39]} 43. Ke5 {[%emt 0:00:00]} Nc6+ {[%emt 0:02:39]} 44. Kd6 {[%emt 0:00:00]} Nxb4 {[%emt 0:02:49]} 45. c5+ {[%emt 0:00:00]} Kb7 {[%emt 0:05:04]} 46. e5 {[%emt 0:00:00]} a5 {[%emt 0:03:33]} 47. Nf5 {[%emt 0:00:00]} a4 {[%emt 0:07:28]} 48. e6 {[%emt 0:00:00]} a3 {[%emt 0:02:35]} 49. e7 {[%emt 0:00:00]} a2 {[%emt 0:00:11]} 50. e8=Q {[%emt 0:00:00]} a1=Q {[%emt 0:00:08]} 51. Qb5+ {[%emt 0:00:00]} Ka8 {[%emt 0:00:34]} 52. Qxb4 {[%emt 0:03:00]} Qf6+ {[%emt 0:00:47]} 53. Kc7 {[%emt 0:00:41]} Qf7+ {[%emt 0:00:20]} 54. Kc6 {[%emt 0:01:01]} Qe8+ {[%emt 0:00:33]} 55. Kd5 {[%emt 0:00:54]} Qg8+ {[%emt 0:00:49]} 56. Ke5 {[%emt 0:00:51]} Qh8+ {[%emt 0:00:38]} 57. Kf4 {[%emt 0:00:18]} Qf6 {[%emt 0:00:51]} 58. Qe4+ {[%emt 0:00:17]} Ka7 {[%emt 0:00:03]} 59. Qe7+ {[%emt 0:01:35]} Qxe7 {[%emt 0:00:06]} 60. Nxe7 {[%emt 0:00:04]} Kb7 {[%emt 0:00:14]} 61. Ke5 {[%emt 0:00:19]} Kc7 {[%emt 0:00:22]} 62. Kd5 {[%emt 0:00:03]} h5 {[%emt 0:00:14]} 63. Nf5 {[%emt 0:00:27]} Kd7 {[%emt 0:00:05]} 64. c6+ {[%emt 0:00:06]} Kc7 {[%emt 0:00:04]} 65. Kc5 {[%emt 0:00:03]} 1-0

[Event "ETCC Open 2023"]
[Site "Budva"]
[Date "2023.11.13"]
[Round "3.13"]
[White "Wojtaszek, Radoslaw"]
[Black "Bacrot, Etienne"]
[Result "1-0"]
[ECO "D20"]
[WhiteElo "2668"]
[BlackElo "2668"]
[Annotator "TA"]
[PlyCount "103"]
[EventDate "2023.11.10"]
[EventType "team-tourn"]
[EventCountry "MNE"]
[SourceTitle "playchess.com"]
[Source "ChessBase"]
[SourceQuality "1"]
[WhiteTeam "Poland"]
[BlackTeam "France"]
[WhiteTeamCountry "POL"]
[BlackTeamCountry "FRA"]
[TimeControl "40/5400+30:1800+30"]

{[%evp 9,103,16,12,8,14,18,35,37,36,25,31,33,40,29,39,35,31,20,26,24,29,29,41,31,14,29,39,29,41,10,5,0,0,0,0,0,0,0,0,0,20,0,76,76,71,73,64,58,73,56,62,52,125,118,121,127,121,88,93,96,102,102,95,97,193,212,237,188,193,185,184,182,499,253,363,388,367,358,518,492,593,597,582,594,738,582,515,464,600,591,587,583,522,554,540,497]} 1. d4 {[%emt 0:00:03]} d5 {[%emt 0:07:14]} 2. c4 {[%emt 0:00:09]} dxc4 {[%emt 0:00:09]} 3. e4 {[%emt 0:00:05][%cal Be2e4,Be4e5][%mdl 32]} Nf6 {[%emt 0:00:05]} 4. e5 {[%emt 0:00:12]} Nd5 {[%emt 0:00:04]} 5. Bxc4 {[%emt 0:00:09]} Bf5 {[%emt 0:00:05]} 6. Nf3 {[%emt 0:01:12] D20: Queen's Gambit Accepted: 3 e3 and 3 e4.} e6 {[%emt 0:08:08]} 7. Nc3 {[%emt 0:00:34]} Nxc3 {[%emt 0:13:05]} 8. bxc3 {[%emt 0:00:06] White is slightly better.} Be7 {[%emt 0:00:51]} 9. O-O {[%emt 0:06:33] [#]} c5 $146 {[%emt 0:18:36]} ({Predecessor:} 9... O-O 10. Qe2 c5 11. Rd1 Nc6 12. dxc5 Qc7 13. Nd4 Bg6 14. Bf4 Bxc5 15. h4 Na5 {1-0 Budrewicz,K (2227)-Kokoszczynski,J (2231) POL-chT 1st League 2020 (5.2)}) 10. Qb3 {[%emt 0:01:40]} O-O {[%emt 0:06:17]} 11. Qxb7 {[%emt 0:07:39]} Nd7 {[%emt 0:00:13]} 12. Qa6 {[%emt 0:03:07]} Nb6 {[%emt 0:01:06]} 13. Bd3 {[%emt 0:05:43]} Bxd3 {[%emt 0:00:18]} 14. Qxd3 {[%emt 0:00:07]} cxd4 {[%emt 0:00:03]} 15. cxd4 {[%emt 0:00:21]} Nd5 {[%emt 0:00:55]} 16. Ba3 {[%emt 0:05:40]} Rc8 {[%emt 0:05:06]} 17. Bxe7 {[%emt 0:03:57]} Qxe7 {[%emt 0:00:08]} 18. Rfc1 {[%emt 0:00:08]} h6 {[%emt 0:01:30]} 19. h4 {[%emt 0:00:19]} Rc7 {[%emt 0:08:14]} 20. Rc4 {[%emt 0:07:59]} Rxc4 {[%emt 0:13:47]} 21. Qxc4 {[%emt 0:00:09]} Rb8 {[%emt 0:00:02]} 22. Rc1 {[%emt 0:06:00]} Qa3 {[%emt 0:03:38]} 23. Rc2 {[%emt 0:04:28]} a5 {[%emt 0:08:44]} 24. Kh2 {[%emt 0:02:42]} Qb4 {[%emt 0:01:19]} 25. Qa6 {[%emt 0:11:41]} Kh7 {[%emt 0:01:13]} (25... Qb1 $11 {keeps the balance.} 26. Qd3 g6) 26. Qd3+ $16 {[%emt 0:03:16]} Kg8 {[%emt 0:00:01]} 27. a3 {[%emt 0:00:52]} Qb7 {[%emt 0:01:33]} 28. Nd2 {[%emt 0:02:43]} a4 {[%emt 0:00:01]} 29. g3 {[%emt 0:00:42]} g6 {[%emt 0:00:54]} 30. Rc4 {[%emt 0:02:20]} Qb5 {[%emt 0:01:09] [#]} (30... Qb2 $1 $14) 31. Rc8+ $3 {[%emt 0:06:08][%mdl 576] Deflection} Kg7 {[%emt 0:00:06]} 32. Qxb5 {[%emt 0:00:04]} Rxb5 {[%emt 0:01:56][%mdl 4096] Endgame KRN-KRN} 33. Rc2 {[%emt 0:00:05] Against Rb2} Ne7 {[%emt 0:00:00]} 34. Kg1 {[%emt 0:01:15]} Nf5 {[%emt 0:00:27]} 35. Rc4 {[%emt 0:00:04][%cal Bc2c4,Bc4a4,Ba4a8][%mdl 32]} Rb2 {[%emt 0:00:31]} 36. Ne4 {[%emt 0:00:45]} Rb1+ {[%emt 0:00:31]} (36... Rb3 $16 {was called for.}) 37. Kg2 $18 {[%emt 0:00:07]} Rd1 {[%emt 0:00:05]} 38. Rxa4 {[%emt 0:03:25]} Nxd4 {[%emt 0:00:02]} 39. Ra8 {[%emt 0:04:10]} Re1 {[%emt 0:01:11] [#]} 40. Nd6 {[%emt 0:03:46] Threatening mate with Ne8+.} g5 $2 {[%emt 0:00:40]} (40... f5 {is more resistant.} 41. exf6+ Kxf6) 41. h5 {[%emt 0:39:28]} (41. Ne8+ $142 Kg6 42. h5+ Kf5 43. Nd6+ Kg4 44. Ra4 (44. Nxf7 Kxh5 45. Rd8 Re4 $16)) 41... f5 {[%emt 0:02:46] [#]} (41... Rxe5 $142 42. Ra7 g4 43. Rxf7+ Kg8) 42. exf6+ $1 {[%emt 0:00:00]} Kxf6 {[%emt 0:00:09]} 43. Ra7 {[%emt 0:00:00]} e5 {[%emt 0:04:20]} (43... Rc1 {is a better defense.} 44. Ne8+ (44. Rh7 g4 $18) 44... Ke5 45. Ra5+ Ke4 46. Nf6+ Kd3) 44. Rh7 {[%emt 0:00:00] White is clearly winning.} g4 {[%emt 0:00:55]} 45. Rxh6+ {[%emt 0:00:00]} Ke7 {[%emt 0:02:36] ( -> ...Nf3)} 46. Rg6 {[%emt 0:00:00][%cal Oh5h6] Threatens to win with h6!} e4 {[%emt 0:00:19]} 47. Nc8+ {[%emt 0:00:00]} ({Worse is} 47. h6 Nf3 48. Nf5+ Kf7 49. Rxg4 Rg1+ 50. Kh3 Rh1+ 51. Kg2 Rg1+ 52. Kh3 Rh1+ 53. Kg2 Rg1+ $11) 47... Kf8 {[%emt 0:01:44]} 48. Rxg4 {[%emt 0:00:00]} Nf3 {[%emt 0:00:09]} 49. Rf4+ {[%emt 0:00:00]} Kg7 {[%emt 0:00:08]} 50. Nd6 {[%emt 0:00:00]} Rg1+ {[%emt 0:00:45]} 51. Kh3 {[%emt 0:00:00]} Rh1+ {[%emt 0:00:04]} 52. Kg4 {[%emt 0:00:00] Weighted Error Value: White=0.13 (very precise) /Black=0.22 (precise)} 1-0